fUST/lending_fUST_20241225
["ID","MTS","AMOUNT","RATE_DAILY","PERIOD"]
[346580571,1735113033079,-500.0,0.00011504,2]
[346580572,1735113033089,-807.14,0.00011504,2]
[346580573,1735113033099,-500.0,0.00011504,2]
[346580574,1735113033109,-500.0,0.00011504,2]
[346580575,1735113033119,-577.59,0.00011504,2]
[346580576,1735113033130,-500.0,0.00011504,2]
[346580577,1735113033140,-500.0,0.00011504,2]
[346580578,1735113033150,-500.0,0.00011504,2]
[346580579,1735113033160,-500.0,0.00011504,2]
[346580580,1735113033170,-1222.98,0.00011504,2]
[346580581,1735113033181,-550.48,0.00011504,2]
[346580582,1735113033192,-802.41,0.00011504,2]
[346580583,1735113033202,-500.0,0.00011504,2]
[346580584,1735113033213,-1606.62,0.00011504,2]
[346580585,1735113033223,-151.0,0.00011504,2]
[346580586,1735113033233,-574.09,0.00011504,2]
[346580587,1735113033243,-404.822993,0.00011504,2]
[346580588,1735113033254,-500.0,0.00011504,2]
[346580589,1735113033265,-151.0,0.00011504,2]
[346580590,1735113033275,-7262.59,0.00011504,2]
[346580591,1735113033284,-1033.09189098,0.00011504,2]
[346580592,1735113035319,500.0,0.00010955,2]
[346580593,1735113035801,500.0,0.00010955,2]
[346580594,1735113036802,500.0,0.00010956,2]
[346580631,1735113037826,-500.0,0.00011229,2]
[346580633,1735113037836,-500.0,0.00011229,2]
[346580635,1735113037845,-78.107955,0.0001123,2]
[346580643,1735113037910,-421.892045,0.0001123,2]
[346580645,1735113037919,-3.00779795,0.00011503,2]
[346580668,1735113038083,-482.98860226,0.00011503,2]
[346580670,1735113038092,-500.0,0.00011503,2]
[346580672,1735113038102,-92.01139774,0.00011503,2]
[346580677,1735113038136,-407.98860226,0.00011503,2]
[346580679,1735113038145,-178.49634061,0.00011504,2]
[346580774,1735113043076,-6038.51176841,0.00011504,2]
[346580776,1735113043086,-1421.41,0.00011504,2]
[346580778,1735113043095,-404.822993,0.00011504,2]
[346580780,1735113043104,-151.0,0.00011504,2]
[346580782,1735113043115,-31054.02,0.00011504,2]
[346580784,1735113043124,-1146.34,0.00011504,2]
[346580786,1735113043134,-151.0,0.00011504,2]
[346580788,1735113043144,-1332.07,0.00011504,2]
[346580790,1735113043154,-500.0,0.00011504,2]
[346580792,1735113043163,-848.73,0.00011504,2]
[346580794,1735113043173,-500.0,0.00011504,2]
[346580796,1735113043183,-514.85,0.00011504,2]
[346580798,1735113043192,-151.0,0.00011504,2]
[346580801,1735113043202,-500.0,0.00011504,2]
[346580803,1735113043214,-500.0,0.00011504,2]
[346580805,1735113043229,-151.0,0.00011504,2]
[346580807,1735113043239,-151.0,0.00011504,2]
[346580809,1735113043248,-151.0,0.00011504,2]
[346580811,1735113043258,-151.0,0.00011504,2]
[346580813,1735113043271,-500.0,0.00011504,2]
[346580815,1735113043282,-548.74,0.00011504,2]
[346580817,1735113043291,-521.29,0.00011504,2]
[346580819,1735113043301,-664.14,0.00011504,2]
[346580821,1735113043311,-151.0,0.00011504,2]
[346580823,1735113043321,-151.0,0.00011504,2]
[346580825,1735113043331,-203.946381,0.00011504,2]
[346580827,1735113043345,-151.0,0.00011504,2]
[346580829,1735113043355,-500.0,0.00011504,2]
[346580831,1735113043365,-151.0,0.00011504,2]
[346580833,1735113043375,-500.0,0.00011505,2]
[346580836,1735113043385,-500.0,0.00011505,2]
[346580838,1735113043397,-500.0,0.00011505,2]
[346580840,1735113043407,-500.0,0.00011505,4]
[346580841,1735113043417,-151.0,0.00011505,2]
[346580843,1735113043427,-500.0,0.00011505,2]
[346580845,1735113043437,-1100.41,0.00011505,2]
[346580847,1735113043447,-500.0,0.00011505,2]
[346580848,1735113043457,-151.0,0.00011505,2]
[346580849,1735113043467,-500.0,0.00011505,2]
[346580850,1735113043477,-544.52,0.00011505,2]
[346580851,1735113043487,-151.0,0.00011505,2]
[346580852,1735113043497,-500.0,0.00011505,2]
[346580854,1735113043506,-500.0,0.00011505,2]
[346580855,1735113043516,-500.0,0.00011505,2]
[346580856,1735113043526,-500.0,0.00011505,2]
[346580857,1735113043535,-500.0,0.00011505,2]
[346580859,1735113043545,-500.0,0.00011505,2]
[346580860,1735113043554,-151.0,0.00011505,2]
[346580861,1735113043564,-500.0,0.00011505,2]
[346580862,1735113043574,-500.0,0.00011505,2]
[346580863,1735113043584,-610.42,0.00011505,2]
[346580864,1735113043594,-151.0,0.00011505,2]
[346580865,1735113043603,-500.0,0.00011505,2]
[346580866,1735113043613,-151.0,0.00011505,2]
[346580867,1735113043623,-151.0,0.00011505,2]
[346580868,1735113043633,-151.0,0.00011505,2]
[346580869,1735113043643,-151.0,0.00011505,2]
[346580870,1735113043652,-1014.15,0.00011505,2]
[346580871,1735113043662,-500.0,0.00011505,2]
[346580872,1735113043672,-431.86112655,0.00011505,2]
[346580873,1735113043682,-500.0,0.00011505,2]
[346580874,1735113043693,-151.0,0.00011505,2]
[346580875,1735113043703,-151.0,0.00011505,2]
[346580876,1735113043713,-151.0,0.00011505,2]
[346580877,1735113043723,-774.78,0.00011505,2]
[346580878,1735113043733,-1002.03,0.00011505,2]
[346580879,1735113043742,-772.34,0.00011505,2]
[346580880,1735113043752,-151.0,0.00011505,2]
[346580881,1735113043762,-607.22,0.00011505,2]
[346580882,1735113043771,-151.0,0.00011505,2]
[346580883,1735113043780,-500.0,0.00011505,2]
[346580884,1735113043790,-500.0,0.00011505,2]
[346580885,1735113043799,-500.0,0.00011505,2]
[346580886,1735113043811,-500.0,0.00011505,2]
[346580887,1735113043820,-500.0,0.00011505,2]
[346580888,1735113043830,-500.0,0.00011505,2]
[346580889,1735113043839,-583.9,0.00011505,2]
[346580890,1735113043849,-500.0,0.00011505,2]
[346580891,1735113043858,-500.0,0.00011505,2]
[346580892,1735113043867,-523.51,0.00011505,2]
[346580893,1735113043877,-500.0,0.00011505,2]
[346580894,1735113043886,-1147.64,0.00011505,2]
[346580895,1735113043896,-500.0,0.00011505,2]
[346580896,1735113043906,-500.0,0.00011505,2]
[346580897,1735113043915,-500.0,0.00011505,2]
[346580898,1735113043924,-151.0,0.00011505,2]
[346580899,1735113043934,-500.0,0.00011505,2]
[346580900,1735113043943,-151.0,0.00011505,2]
[346580901,1735113043952,-151.0,0.00011505,2]
[346580902,1735113043961,-151.0,0.00011505,2]
[346580903,1735113043971,-151.0,0.00011505,2]
[346580904,1735113043980,-151.0,0.00011505,2]
[346580905,1735113043989,-151.0,0.00011505,2]
[346580906,1735113043999,-1239.24,0.00011505,2]
[346580907,1735113044008,-260.246788,0.00011505,2]
[346580908,1735113044017,-151.0,0.00011505,2]
[346580909,1735113044027,-517.34,0.00011506,2]
[346580910,1735113044037,-500.0,0.00011506,2]
[346580911,1735113044047,-500.0,0.00011506,2]
[346580912,1735113044056,-500.0,0.00011506,2]
[346580913,1735113044067,-500.0,0.00011506,2]
[346580914,1735113044077,-1221.38017867,0.00011506,2]
[346580915,1735113044350,-182.20659589,0.00011506,2]
[346580972,1735113046830,-63.26322544,0.00011506,2]
[346580973,1735113046840,-151.0,0.00011506,2]
[346580974,1735113046849,-151.0,0.00011506,2]
[346580975,1735113046859,-513.57,0.00011506,2]
[346580976,1735113046868,-151.0,0.00011506,2]
[346580977,1735113046877,-233.75685497,0.00011506,2]
[346580978,1735113046887,-500.0,0.00011506,2]
[346580979,1735113046896,-151.0,0.00011506,2]
[346580980,1735113046905,-272.176932,0.00011506,2]
[346580981,1735113046914,-500.0,0.00011506,2]
[346580982,1735113046923,-622.01,0.00011506,2]
[346580983,1735113046932,-3066.95042551,0.0001164,2]
[346580984,1735113046944,-806.17202303,0.0001164,2]
[346580985,1735113046974,651.87,0.00010955,2]
[346580986,1735113046987,-286.88761145,0.0001164,2]
[346580987,1735113048529,962.86,0.00010956,2]
[346580988,1735113048918,462.34495863,0.00010956,2]
[346581136,1735113387427,503.63170773,9.955e-05,2]
[346581137,1735113387453,300.0,9.955e-05,2]
[346581138,1735113387479,600.94299482,9.955e-05,2]
[346581139,1735113387502,932.48048875,9.955e-05,2]
[346582198,1735113619227,24900.0,9.929e-05,2]
[346582199,1735113691706,160.0,0.00017616,120]
[346582202,1735113751373,160.0,0.00021538,120]
[346582203,1735113804925,155.87684334,0.00010009,2]
[346582204,1735113811130,160.0,0.00022546,120]
[346582206,1735113820686,155.87684334,0.00010009,2]
[346582207,1735113821566,182.9477733,0.00010008,2]
[346582210,1735113836155,155.87684334,0.00010009,2]
[346582211,1735113851220,155.87684334,0.00010009,2]
[346582212,1735113852779,1826.74163704,0.0001001,2]
[346582214,1735113866647,155.87684334,0.00010009,2]
[346582215,1735113875317,155.87684334,0.00010009,2]
[346582216,1735113883389,415.90978498,0.0001001,2]
[346582217,1735114046104,-155.87684334,0.0001011,2]
[346582218,1735114046129,-121.02058286,0.00010212,2]
[346582219,1735114121622,-155.87684334,0.0001011,2]
[346582220,1735114121646,-155.87684334,0.00010212,2]
[346582221,1735114121670,-77.1479133,0.00010315,2]
[346582222,1735114147138,-78.72893004,0.00010315,2]
[346582223,1735114147158,-583.6160535,0.00010853,2]
[346582224,1735114147179,-583.6160535,0.00010922,2]
[346582225,1735114147200,-300.0,0.0001095,2]
[346582226,1735114147219,-500.0,0.00010951,2]
[346582227,1735114147240,-500.0,0.00010951,2]
[346582228,1735114147260,-500.0,0.00010951,2]
[346582229,1735114147280,-300.0,0.00010951,2]
[346582230,1735114147300,-500.0,0.00010952,2]
[346582231,1735114147322,-237.9676526,0.00010952,2]
[346582232,1735114147343,-1468.78,0.00010952,2]
[346582233,1735114147364,-500.0,0.00010952,2]
[346582234,1735114147384,-654.06191261,0.00010952,2]
[346582235,1735114150672,-278.27808739,0.00010952,2]
[346582236,1735114150692,-500.0,0.00010952,2]
[346582237,1735114150712,-500.0,0.00010952,2]
[346582238,1735114150732,-500.0,0.00010952,2]
[346582239,1735114150754,-500.0,0.00010952,2]
[346582240,1735114150774,-500.0,0.00010952,2]
[346582241,1735114150796,-718.82,0.00010952,2]
[346582242,1735114150816,-500.0,0.00010952,2]
[346582243,1735114150844,-500.0,0.00010952,2]
[346582244,1735114150864,-573.50295927,0.00010952,2]
[346582245,1735114150885,-8652.18,0.00010952,2]
[346582246,1735114150907,-500.0,0.00010952,2]
[346582247,1735114150927,-90.74417769,0.00010952,2]
[346582248,1735114155112,-309.01687615,0.00010842,2]
[346582249,1735114155133,-3175.58582231,0.00010952,2]
[346582250,1735114155156,-500.0,0.00010952,2]
[346582251,1735114155177,-500.0,0.00010952,2]
[346582252,1735114155198,-500.0,0.00010952,2]
[346582253,1735114155221,-500.0,0.00010952,2]
[346582254,1735114155243,-500.0,0.00010952,2]
[346582255,1735114155266,-500.0,0.00010952,2]
[346582256,1735114155287,-500.0,0.00010952,2]
[346582257,1735114155310,-18.11397866,0.00010952,2]
[346582258,1735114170094,-192.12102354,0.00010743,2]
[346582259,1735114170120,-192.12102354,0.00010852,2]
[346582260,1735114170145,-500.0,0.00010952,2]
[346582261,1735114170170,-500.0,0.00010952,2]
[346582262,1735114170197,-481.88602134,0.00010952,2]
[346582263,1735114170223,-500.0,0.00010952,2]
[346582264,1735114170247,-500.0,0.00010952,2]
[346582265,1735114170271,-500.0,0.00010952,2]
[346582266,1735114170296,-500.0,0.00010952,2]
[346582267,1735114170319,-500.0,0.00010952,2]
[346582268,1735114170346,-500.0,0.00010952,2]
[346582269,1735114170367,-500.0,0.00010952,2]
[346582270,1735114170389,-500.0,0.00010952,2]
[346582271,1735114170614,-500.0,0.00010952,2]
[346582272,1735114170635,-420.68403504,0.00010952,2]
[346582273,1735114170655,-500.0,0.00010952,2]
[346582274,1735114170678,-500.0,0.00010952,2]
[346582275,1735114170699,-500.0,0.00010952,2]
[346582276,1735114170721,-500.0,0.00010952,2]
[346582277,1735114170745,-500.0,0.00010952,2]
[346582278,1735114170768,-500.0,0.00010952,2]
[346582279,1735114170789,-500.0,0.00010952,2]
[346582280,1735114170808,-500.0,0.00010952,2]
[346582281,1735114170829,-500.0,0.00010952,2]
[346582282,1735114170850,-500.0,0.00010952,2]
[346582283,1735114170872,-500.0,0.00010952,2]
[346582284,1735114170894,-500.0,0.00010952,2]
[346582285,1735114170916,-500.0,0.00010952,2]
[346582286,1735114170936,-530.20162236,0.00010952,2]
[346582287,1735114170957,-500.0,0.00010952,2]
[346582288,1735114170977,-638.16694585,0.00010952,2]
[346582289,1735114171003,-500.0,0.00010952,2]
[346582290,1735114171024,-500.0,0.00010952,2]
[346582291,1735114171045,-500.0,0.00010952,2]
[346582292,1735114171066,-500.0,0.00010952,2]
[346582293,1735114171090,-500.0,0.00010952,2]
[346582294,1735114171110,-572.98049021,0.00010952,2]
[346582295,1735114171132,-500.0,0.00010952,2]
[346582296,1735114171154,-500.0,0.00010952,2]
[346582297,1735114171175,-500.0,0.00010952,2]
[346582298,1735114171197,-500.0,0.00010952,2]
[346582299,1735114171219,-500.0,0.00010952,2]
[346582300,1735114171239,-500.0,0.00010952,2]
[346582301,1735114171259,-500.0,0.00010952,2]
[346582302,1735114171279,-500.0,0.00010952,2]
[346582303,1735114171300,-500.0,0.00010952,2]
[346582304,1735114171321,-500.0,0.00010952,2]
[346582305,1735114171345,-500.0,0.00010952,2]
[346582306,1735114171370,-271.89525149,0.00010952,2]
[346582307,1735114171391,-500.0,0.00010952,2]
[346582308,1735114171414,-500.0,0.00010952,2]
[346582309,1735114171436,-500.0,0.00010952,2]
[346582310,1735114171458,-500.0,0.00010952,2]
[346582311,1735114171479,-500.0,0.00010952,2]
[346582312,1735114171501,-500.0,0.00010952,2]
[346582313,1735114171523,-500.0,0.00010952,2]
[346582314,1735114171546,-500.0,0.00010952,2]
[346582315,1735114171568,-500.0,0.00010952,2]
[346582316,1735114171592,-500.0,0.00010952,2]
[346582317,1735114171614,-500.0,0.00010952,2]
[346582318,1735114171638,-359.25260593,0.00010952,2]
[346582319,1735114171660,-500.0,0.00010952,2]
[346582320,1735114171683,-500.0,0.00010952,2]
[346582321,1735114171704,-500.0,0.00010952,2]
[346582322,1735114171725,-500.0,0.00010952,2]
[346582323,1735114171745,-500.0,0.00010952,2]
[346582324,1735114171766,-500.0,0.00010952,2]
[346582325,1735114171787,-500.0,0.00010952,2]
[346582326,1735114171808,-500.0,0.00010952,2]
[346582327,1735114171828,-500.0,0.00010952,2]
[346582328,1735114171853,-158.47958558,0.00010952,2]
[346582329,1735114171873,-500.0,0.00010952,2]
[346582330,1735114171894,-585.9252606,0.00010952,2]
[346582331,1735114171914,-500.0,0.00010952,2]
[346582332,1735114171935,-500.0,0.00010952,2]
[346582333,1735114171955,-500.0,0.00010952,2]
[346582334,1735114171975,-348.6852162,0.00010952,2]
[346582335,1735114172001,-500.0,0.00010952,2]
[346582336,1735114172022,-500.0,0.00010952,2]
[346582337,1735114172044,-500.0,0.00010952,2]
[346582338,1735114172067,-281.13351359,0.00010952,2]
[346582339,1735114172300,-500.0,0.00010952,2]
[346582340,1735114172321,-229.80490205,0.00010952,2]
[346582341,1735114172340,-505.72159742,0.00010953,2]
[346582342,1735114172360,-502.88738868,0.00010953,2]
[346582343,1735114172380,-500.0,0.00010953,2]
[346582344,1735114172400,-500.0,0.00010953,2]
[346582345,1735114172420,-500.0,0.00010953,2]
[346582346,1735114172442,-500.0,0.00010953,2]
[346582347,1735114172463,-500.0,0.00010953,2]
[346582348,1735114172483,-500.0,0.00010953,2]
[346582349,1735114172504,-503.0038404,0.00010953,2]
[346582350,1735114172526,-500.0,0.00010953,2]
[346582351,1735114172546,-500.0,0.00010953,2]
[346582352,1735114172568,-500.0,0.00010953,2]
[346582353,1735114172590,-500.0,0.00010953,2]
[346582354,1735114172611,-500.0,0.00010953,2]
[346582355,1735114172632,-565.65984112,0.00010953,2]
[346582356,1735114172652,-500.0,0.00010953,2]
[346582357,1735114172673,-500.0,0.00010953,2]
[346582358,1735114172694,-504.23693916,0.00010953,2]
[346582359,1735114172715,-500.0,0.00010953,2]
[346582360,1735114172736,-500.0,0.00010953,2]
[346582361,1735114172758,-548.54,0.00010953,2]
[346582362,1735114172778,-500.0,0.00010953,2]
[346582363,1735114172799,-11.63904826,0.00010953,2]
[346582409,1735114238039,-1695.17649006,0.00010842,2]
[346582410,1735114238051,-670.89738549,0.00010842,2]
[346582417,1735114242004,-1493.54975629,0.00010842,2]
[346582418,1735114242016,-350.1696321,0.00010853,2]
[346582419,1735114242026,-350.1696321,0.00010922,2]
[346582420,1735114242036,-300.0,0.0001095,2]
[346582421,1735114242045,-1407.58,0.00010951,2]
[346582422,1735114242055,-500.0,0.00010951,2]
[346582423,1735114242064,-500.0,0.00010951,2]
[346582424,1735114242074,-300.0,0.00010951,2]
[346582425,1735114242084,-500.0,0.00010951,2]
[346582426,1735114242098,-893.49,0.00010951,2]
[346582427,1735114242108,-2597.24,0.00010952,2]
[346582428,1735114242117,-500.0,0.00010952,2]
[346582429,1735114242127,-500.0,0.00010952,2]
[346582430,1735114242137,-500.0,0.00010952,2]
[346582431,1735114242147,-1498.99,0.00010952,2]
[346582432,1735114242157,-500.0,0.00010952,2]
[346582433,1735114242167,-1287.27,0.00010952,2]
[346582434,1735114242177,-759.15,0.00010952,2]
[346582435,1735114242186,-500.0,0.00010952,2]
[346582436,1735114242195,-500.0,0.00010952,2]
[346582437,1735114242205,-822.74,0.00010952,2]
[346582438,1735114242214,-552.19,0.00010952,2]
[346582439,1735114242224,-500.0,0.00010952,2]
[346582440,1735114242233,-500.0,0.00010952,2]
[346582441,1735114242242,-488.36095174,0.00010953,2]
[346582442,1735114242251,-501.20977486,0.00010953,2]
[346582443,1735114242262,-500.0,0.00010953,2]
[346582444,1735114242271,-500.0,0.00010953,2]
[346582445,1735114242280,-500.0,0.00010953,2]
[346582446,1735114242289,-500.0,0.00010953,2]
[346582447,1735114242300,-500.0,0.00010953,2]
[346582448,1735114242310,-245.05302378,0.00010953,2]
[346582449,1735114242319,-500.0,0.00010953,2]
[346582450,1735114242328,-503.92296452,0.00010953,2]
[346582451,1735114242338,-500.0,0.00010953,2]
[346582452,1735114242346,-504.86775861,0.00010953,2]
[346582453,1735114242356,-500.0,0.00010953,2]
[346582454,1735114242367,-500.0,0.00010953,2]
[346582455,1735114242376,-500.0,0.00010953,2]
[346582456,1735114242385,-502.16645769,0.00010953,2]
[346582457,1735114242394,-500.0,0.00010953,2]
[346582458,1735114242404,-500.0,0.00010953,2]
[346582459,1735114242413,-500.0,0.00010953,2]
[346582460,1735114242423,-500.0,0.00010953,2]
[346582461,1735114242432,-500.0,0.00010953,2]
[346582462,1735114242441,-500.0,0.00010953,2]
[346582463,1735114242450,-500.0,0.00010953,2]
[346582465,1735114242460,-492.76185566,0.00010953,2]
[346582467,1735114242468,-500.0,0.00010953,2]
[346582469,1735114242478,-500.0,0.00010953,2]
[346582470,1735114242487,-500.0,0.00010953,2]
[346582472,1735114242496,-500.0,0.00010953,2]
[346582474,1735114242506,-500.0,0.00010953,2]
[346582476,1735114242515,-500.0,0.00010953,2]
[346582477,1735114242524,-500.0,0.00010953,2]
[346582478,1735114242534,-216.60853243,0.00010953,2]
[346582479,1735114242543,-500.0,0.00010953,2]
[346582480,1735114242552,-500.0,0.00010953,2]
[346582481,1735114242562,-500.0,0.00010953,2]
[346582482,1735114242572,-500.0,0.00010953,2]
[346582483,1735114242581,-500.0,0.00010953,2]
[346582484,1735114242591,-500.0,0.00010953,2]
[346582485,1735114242600,-504.61972504,0.00010953,2]
[346582486,1735114242610,-500.0,0.00010953,2]
[346582487,1735114242619,-500.0,0.00010953,2]
[346582488,1735114242628,-500.0,0.00010953,2]
[346582489,1735114242638,-500.0,0.00010953,2]
[346582490,1735114242647,-500.0,0.00010953,2]
[346582491,1735114242657,-618.9,0.00010953,2]
[346582492,1735114242666,-500.0,0.00010953,2]
[346582493,1735114242675,-500.0,0.00010953,2]
[346582494,1735114242684,-500.0,0.00010953,2]
[346582495,1735114242693,-503.53625865,0.00010953,2]
[346582496,1735114242703,-500.0,0.00010953,2]
[346582497,1735114242712,-500.0,0.00010953,2]
[346582498,1735114242722,-500.0,0.00010953,2]
[346582499,1735114242731,-500.0,0.00010953,2]
[346582500,1735114242740,-500.0,0.00010953,2]
[346582501,1735114242750,-594.43822785,0.00010953,2]
[346582502,1735114242759,-500.0,0.00010953,2]
[346582503,1735114242769,-500.0,0.00010953,2]
[346582504,1735114242779,-500.0,0.00010953,2]
[346582505,1735114242789,-504.15733938,0.00010953,2]
[346582506,1735114242798,-500.0,0.00010953,2]
[346582507,1735114242808,-505.47608984,0.00010953,2]
[346582508,1735114242818,-500.0,0.00010953,2]
[346582509,1735114242827,-502.65509306,0.00010953,2]
[346582510,1735114242836,-490.16368841,0.00010953,2]
[346582511,1735114242846,-500.0,0.00010953,2]
[346582512,1735114242855,-502.1277845,0.00010953,2]
[346582513,1735114242864,-500.0,0.00010953,2]
[346582514,1735114242873,-500.0,0.00010953,2]
[346582515,1735114242882,-500.0,0.00010953,2]
[346582516,1735114242891,-500.0,0.00010953,2]
[346582517,1735114242901,-1124.02,0.00010953,2]
[346582518,1735114242910,-500.0,0.00010953,2]
[346582519,1735114242919,-500.0,0.00010953,2]
[346582520,1735114242929,-500.0,0.00010953,2]
[346582521,1735114242939,-500.0,0.00010953,2]
[346582522,1735114242948,-500.0,0.00010953,2]
[346582523,1735114242958,-500.0,0.00010953,2]
[346582524,1735114242968,-500.0,0.00010953,2]
[346582525,1735114242977,-500.0,0.00010953,2]
[346582526,1735114242987,-506.82534137,0.00010953,2]
[346582527,1735114242996,-500.0,0.00010953,2]
[346582528,1735114243006,-500.0,0.00010953,2]
[346582529,1735114243015,-500.0,0.00010953,2]
[346582530,1735114243025,-500.0,0.00010953,2]
[346582531,1735114243034,-500.0,0.00010953,2]
[346582532,1735114243043,-500.0,0.00010953,2]
[346582533,1735114243053,-500.0,0.00010953,2]
[346582534,1735114243063,-794.49,0.00010953,2]
[346582535,1735114243073,-500.0,0.00010953,2]
[346582536,1735114243082,-500.0,0.00010953,2]
[346582537,1735114243096,-502.59625535,0.00010953,2]
[346582538,1735114243105,-500.0,0.00010953,2]
[346582539,1735114243115,-500.0,0.00010953,2]
[346582540,1735114243125,-501.73,0.00010953,2]
[346582541,1735114243135,-500.0,0.00010953,2]
[346582542,1735114243144,-505.2727074,0.00010953,2]
[346582543,1735114243153,-361.22467692,0.00010953,2]
[346582544,1735114243162,-168.0,0.00010953,2]
[346582545,1735114243172,-500.0,0.00010953,2]
[346582546,1735114243182,-500.0,0.00010953,2]
[346582547,1735114243191,-500.0,0.00010953,2]
[346582548,1735114243200,-500.0,0.00010953,2]
[346582549,1735114243210,-500.0,0.00010953,2]
[346582550,1735114243219,-500.0,0.00010953,2]
[346582551,1735114243228,-507.59360303,0.00010953,2]
[346582552,1735114243238,-500.0,0.00010953,2]
[346582553,1735114243247,-500.0,0.00010953,2]
[346582554,1735114243257,-500.0,0.00010953,2]
[346582555,1735114243266,-500.0,0.00010953,2]
[346582556,1735114243276,-500.0,0.00010953,2]
[346582557,1735114243286,-500.0,0.00010953,2]
[346582558,1735114243295,-500.0,0.00010953,2]
[346582559,1735114243304,-500.0,0.00010953,2]
[346582560,1735114243313,-500.0,0.00010953,2]
[346582561,1735114243323,-500.0,0.00010953,2]
[346582562,1735114243332,-500.0,0.00010953,2]
[346582563,1735114243341,-500.0,0.00010953,2]
[346582564,1735114243351,-503.40895942,0.00010953,2]
[346582565,1735114243360,-500.52376389,0.00010953,2]
[346582566,1735114243369,-500.0,0.00010953,2]
[346582567,1735114243379,-502.36049785,0.00010953,2]
[346582568,1735114243388,-500.0,0.00010953,2]
[346582569,1735114243397,-500.0,0.00010953,2]
[346582570,1735114243407,-502.75041916,0.00010953,2]
[346582571,1735114243417,-500.0,0.00010953,2]
[346582572,1735114243426,-500.0,0.00010953,2]
[346582573,1735114243435,-500.0,0.00010953,2]
[346582574,1735114243445,-570.22559638,0.00010953,2]
[346582575,1735114243454,-500.0,0.00010953,2]
[346582576,1735114243463,-500.0,0.00010953,2]
[346582577,1735114243473,-566.47173792,0.00010953,2]
[346582578,1735114243482,-500.0,0.00010953,2]
[346582579,1735114243491,-500.0,0.00010953,2]
[346582580,1735114243501,-500.0,0.00010953,2]
[346582581,1735114243511,-323.24681965,0.00010953,2]
[346582582,1735114243521,-500.0,0.00010953,2]
[346582583,1735114243530,-500.98147514,0.00010953,2]
[346582584,1735114243540,-500.0,0.00010953,2]
[346582585,1735114243549,-551.51,0.00010953,2]
[346582586,1735114243559,-500.0,0.00010953,2]
[346582587,1735114243568,-500.0,0.00010953,2]
[346582588,1735114243577,-500.0,0.00010953,2]
[346582589,1735114243587,-296.28044714,0.00010953,2]
[346582590,1735114243596,-502.94010242,0.00010953,2]
[346582591,1735114243606,-503.64529884,0.00010953,2]
[346582592,1735114243616,-500.0,0.00010953,2]
[346582593,1735114243626,-500.0,0.00010953,2]
[346582594,1735114243635,-502.30606034,0.00010953,2]
[346582595,1735114243645,-500.0,0.00010953,2]
[346582596,1735114243655,-500.0,0.00010953,2]
[346582597,1735114243664,-500.0,0.00010953,2]
[346582598,1735114243673,-500.0,0.00010953,2]
[346582599,1735114243683,-505.1481969,0.00010953,2]
[346582600,1735114243693,-500.0,0.00010953,2]
[346582601,1735114243702,-500.0,0.00010953,2]
[346582602,1735114243712,-500.0,0.00010953,2]